bitfinex-derivatives/quotes_BTCF0:USTF0_20220102
["timestamp","ask_amount","ask_price","bid_price","bid_amount"]
[1641099736618,1.62600298,46943.0,46941.0,0.06]
[1641099736819,0.13802592,46943.0,46941.0,0.18]
[1641099737117,0.13802592,46943.0,46941.0,0.98]
[1641099737317,0.13802592,46943.0,46941.0,0.82129645]
[1641099737516,0.13802592,46943.0,46941.0,0.8]
[1641099738120,0.13802592,46943.0,46941.0,0.02129627]
[1641099738320,0.13802592,46943.0,46938.0,0.17123707]
[1641099738919,0.13802592,46943.0,46940.0,0.14033567]
[1641099740019,0.13802592,46943.0,46940.0,0.94033567]
[1641099740419,0.0192,46944.0,46942.0,0.13741816]
[1641099740420,0.01562722,46944.0,46942.0,0.13741816]
[1641099740819,0.01562722,46944.0,46940.0,0.14033567]
[1641099740820,0.01562722,46944.0,46941.0,0.8]
[1641099741223,0.01562722,46944.0,46943.0,0.317834]
[1641099741424,0.01562722,46944.0,46941.0,1.118683]
[1641099741622,0.01562722,46944.0,46942.0,0.0219619]
[1641099741823,0.01562722,46944.0,46943.0,0.3207]
[1641099742123,0.01562722,46944.0,46942.0,0.0212959]
[1641099742321,0.01562722,46944.0,46943.0,0.49948]
[1641099742720,0.01562722,46944.0,46943.0,0.50048]
[1641099742921,0.01562722,46944.0,46943.0,0.32048]
[1641099743522,0.01562722,46944.0,46943.0,0.50048]
[1641099743924,0.85080303,46944.0,46943.0,0.181]
[1641099744327,0.85080303,46944.0,46943.0,0.501743]
[1641099744525,1.31241913,46950.0,46943.0,1.689054]
[1641099744725,1.31241913,46950.0,46949.0,0.8]
[1641099744927,1.48797706,46961.0,46950.0,1.108]
[1641099745126,0.02128961,46973.0,46959.0,0.98]
[1641099745324,0.009794,46973.0,46962.0,0.18]
[1641099745728,0.009794,46973.0,46963.0,0.321003]
[1641099745934,0.009794,46973.0,46962.0,0.18]
[1641099746140,0.18,46969.0,46959.0,0.07516]
[1641099746340,0.18,46969.0,46951.0,0.8]
[1641099746540,0.18,46969.0,46951.0,0.800901]
[1641099746740,0.18,46969.0,46951.0,1.012101]
[1641099746945,0.18,46969.0,46961.0,0.14033567]
[1641099748943,0.14033567,46972.0,46961.0,0.14033567]
[1641099749143,0.59802507,46962.0,46961.0,0.14033567]
[1641099750547,0.60781907,46962.0,46952.0,0.14033567]
[1641099750750,0.18,46959.0,46952.0,0.14033567]
[1641099751048,0.18,46954.0,46952.0,0.14033567]
[1641099751247,0.02129701,46957.0,46952.0,0.14033567]
[1641099751452,0.35844259,46954.0,46952.0,0.14033567]
[1641099752348,0.35844259,46953.0,46952.0,0.14033567]
[1641099752949,0.82990793,46953.0,46942.0,1.20849213]
[1641099753148,0.18,46946.0,46943.0,1.44900463]
[1641099753351,0.25685,46946.0,46943.0,1.44900463]
[1641099753747,0.07685,46946.0,46944.0,0.31803]
[1641099753947,0.07685,46946.0,46939.0,0.000901]
[1641099754448,1.3142895,46949.0,46943.0,0.24208847]
[1641099754848,1.3142895,46950.0,46944.0,0.500772]
[1641099755148,1.43352331,46953.0,46947.0,0.18]
[1641099755348,1.43352331,46953.0,46952.0,0.2122]
[1641099755547,1.43352331,46953.0,46948.0,0.318864]
[1641099756148,0.1176575,46955.0,46948.0,0.318864]
[1641099757048,0.1176575,46955.0,46952.0,0.14033567]
[1641099758150,0.2976575,46955.0,46952.0,0.14033567]
[1641099758554,0.2976575,46955.0,46943.0,1.44900463]
[1641099758752,0.18,46945.0,46943.0,1.44900463]
[1641099758952,0.24125,46945.0,46943.0,1.44900463]
[1641099759152,0.24125,46945.0,46938.0,1.44900463]
[1641099760555,0.1176575,46944.0,46935.0,1.44900463]
[1641099761457,0.24125,46945.0,46933.0,0.14033567]
[1641099762054,1.31335239,46943.0,46933.0,0.14033567]
[1641099762256,1.31335239,46943.0,46934.0,0.18]
[1641099763058,1.31335239,46943.0,46933.0,0.14033567]
[1641099763258,0.18,46944.0,46934.0,0.18]
[1641099763660,0.18,46944.0,46933.0,1.5893403]
[1641099763862,1.49335239,46944.0,46933.0,1.5893403]
[1641099764460,1.49335239,46944.0,46933.0,0.14033567]
[1641099764662,0.009794,46943.0,46933.0,0.14033567]
[1641099765261,0.1176575,46942.0,46933.0,0.14033567]
[1641099765463,0.18,46938.0,46933.0,0.14033567]
[1641099765661,0.189794,46938.0,46933.0,0.14033567]
[1641099766464,0.189794,46938.0,46930.0,0.13618663]
[1641099766664,0.18,46935.0,46930.0,0.13618663]
[1641099766865,0.18,46935.0,46931.0,0.00934547]
[1641099767164,0.18,46935.0,46928.0,0.14033567]
[1641099767165,0.32033567,46935.0,46928.0,0.14033567]
[1641099767363,0.14033567,46935.0,46928.0,0.14033567]
[1641099767964,0.14033567,46935.0,46929.0,0.00934601]
[1641099768364,0.14033567,46935.0,46932.0,0.60500718]
[1641099770271,0.35769599,46935.0,46934.0,0.60500718]
[1641099771070,0.35769599,46935.0,46934.0,0.66320718]
[1641099771570,0.35769599,46936.0,46934.0,1.22563469]
[1641099772269,0.35769599,46936.0,46934.0,0.90519969]
[1641099772570,0.35769599,46936.0,46934.0,0.0582]
[1641099772772,0.35769599,46936.0,46932.0,1.34999471]
[1641099772973,0.35769599,46938.0,46934.0,1.20999955]
[1641099773174,0.35769599,46938.0,46934.0,1.35033522]
[1641099773574,0.35769599,46938.0,46937.0,0.60493355]
[1641099774175,0.59619803,46939.0,46937.0,0.60493355]
[1641099774375,0.59619803,46939.0,46936.0,0.60493355]
[1641099775176,0.18,46938.0,46936.0,0.60493355]
[1641099775975,0.59619803,46939.0,46936.0,0.60493355]
[1641099776177,0.18,46938.0,46936.0,0.60493355]
[1641099776379,0.59619803,46937.0,46935.0,0.60493355]
[1641099776777,0.59619803,46937.0,46934.0,0.14033567]
[1641099776778,0.59619803,46936.0,46934.0,0.74526922]
[1641099776976,0.18,46935.0,46934.0,0.60493355]
[1641099777178,0.32033567,46935.0,46934.0,0.60493355]
[1641099777577,0.6780649,46935.0,46932.0,0.84690697]
[1641099777779,0.18,46933.0,46927.0,1.33099951]
[1641099777977,0.18,46928.0,46927.0,1.33099951]
[1641099778177,0.06,46933.0,46927.0,1.33099951]
[1641099778378,0.18,46928.0,46927.0,1.33099951]
[1641099778580,0.18,46928.0,46923.0,1.21014972]
[1641099778777,0.18,46925.0,46923.0,1.21014972]
[1641099778980,0.26214,46925.0,46923.0,1.21014972]
[1641099779177,0.08214,46925.0,46923.0,1.21014972]
[1641099779377,0.08214,46925.0,46924.0,0.18]
[1641099779577,0.08214,46925.0,46923.0,1.21014972]
[1641099779892,0.43997605,46925.0,46924.0,0.33015724]
[1641099780091,0.35783605,46925.0,46924.0,0.33015724]
[1641099780291,0.35783605,46925.0,46924.0,0.00934824]
[1641099780494,0.35783605,46930.0,46924.0,0.32956424]
[1641099780992,0.35783605,46930.0,46925.0,0.00934824]
[1641099781192,0.35783605,46930.0,46926.0,0.14033567]
[1641099781392,0.35783605,46930.0,46926.0,0.45492167]
[1641099781597,0.35783605,46930.0,46927.0,0.00934824]
[1641099781794,0.35783605,46931.0,46927.0,0.00934824]
[1641099782195,0.14033567,46935.0,46927.0,0.00934824]
[1641099782196,0.35783605,46932.0,46927.0,0.00934824]
[1641099783695,0.35783605,46934.0,46927.0,0.00934824]
[1641099786199,0.35783605,46933.0,46927.0,0.00934824]
[1641099786800,0.35783605,46933.0,46932.0,0.18]
[1641099787005,0.35783605,46933.0,46932.0,0.26421]
[1641099787199,0.35783605,46933.0,46932.0,0.72537167]
[1641099787398,0.35783605,46933.0,46932.0,0.73471991]
[1641099787698,0.35783605,46933.0,46932.0,0.94691991]
[1641099788298,0.60205761,46935.0,46932.0,0.94691991]
[1641099788498,0.35783605,46941.0,46934.0,0.001]
[1641099788700,0.35783605,46941.0,46936.0,0.18]
[1641099789400,0.35783605,46941.0,46934.0,0.006478]
[1641099789401,0.60205761,46941.0,46939.0,0.14033567]
[1641099790202,0.60205761,46941.0,46934.0,1.20943548]
[1641099790401,0.69223761,46941.0,46934.0,1.20943548]
[1641099791202,0.96413272,46940.0,46939.0,0.001]
[1641099792400,0.8428285,46942.0,46939.0,0.001]
[1641099792600,0.8428285,46942.0,46941.0,0.001]
[1641099793201,0.8428285,46942.0,46934.0,1.20943548]
[1641099795002,0.8428285,46941.0,46933.0,1.73790272]
[1641099795206,0.8428285,46941.0,46939.0,0.14033567]
[1641099796503,0.8428285,46942.0,46939.0,0.14033567]
[1641099796906,0.12130422,46940.0,46939.0,0.14033567]
[1641099798103,0.9099785,46941.0,46939.0,0.14033567]
[1641099798304,0.18,46940.0,46935.0,0.84671762]
[1641099798504,1.14413272,46940.0,46933.0,0.84671762]
[1641099799305,0.14033567,46938.0,46933.0,0.84671762]
[1641099799705,0.14033567,46938.0,46932.0,0.84671762]
[1641099799706,0.8428285,46936.0,46932.0,0.84671762]
[1641099800306,0.8428285,46935.0,46931.0,0.84671762]
[1641099800910,1.0228285,46935.0,46931.0,0.84671762]
[1641099801307,0.8428285,46935.0,46931.0,0.84671762]
[1641099801910,0.8428285,46933.0,46929.0,0.84671762]
[1641099802909,0.96413272,46935.0,46931.0,0.84671762]
[1641099803911,0.12130422,46934.0,46931.0,0.84671762]
[1641099804513,0.36300858,46932.0,46931.0,0.84671762]
[1641099804916,0.36300858,46934.0,46929.0,1.20943548]
[1641099805112,0.36300858,46934.0,46931.0,1.20943548]
[1641099806015,0.36300858,46933.0,46932.0,0.84508329]
[1641099807115,0.60498212,46935.0,46932.0,0.84508329]
[1641099807418,0.60498212,46934.0,46931.0,0.84508329]
[1641099807815,0.18,46932.0,46931.0,0.84508329]
[1641099808016,0.78498212,46932.0,46930.0,0.63688329]
[1641099808216,0.18,46931.0,46930.0,0.63688329]
[1641099808918,0.20130901,46931.0,46930.0,0.63688329]
[1641099809316,0.34164468,46931.0,46928.0,1.20943548]
[1641099809518,0.34164468,46931.0,46919.0,0.02]
[1641099809519,0.45611447,46931.0,46923.0,1.20943548]
[1641099809720,0.18,46926.0,46923.0,1.20943548]
[1641099809921,0.24911,46926.0,46923.0,1.20943548]
[1641099810120,0.009794,46925.0,46923.0,1.20943548]
[1641099810521,0.009794,46925.0,46924.0,1.20943548]
[1641099811320,0.26459946,46925.0,46921.0,1.20943548]
[1641099812321,0.11446979,46924.0,46919.0,1.22943548]
[1641099813320,0.14033567,46920.0,46919.0,1.22943548]
[1641099814723,0.25480546,46920.0,46919.0,1.22943548]
[1641099816827,0.14033567,46920.0,46919.0,1.22943548]
[1641099817026,0.14033567,46920.0,46919.0,0.02]
[1641099817626,0.32033567,46920.0,46919.0,0.02]
[1641099819128,0.14033567,46920.0,46919.0,0.02]
[1641099819528,0.14033567,46920.0,46919.0,0.11349]
[1641099820429,0.14033567,46920.0,46919.0,0.29349]
[1641099820827,0.36281438,46921.0,46919.0,0.11349]
[1641099821228,0.36281438,46923.0,46920.0,0.001]
[1641099821429,0.36281438,46923.0,46922.0,0.001]
[1641099822231,0.36281438,46927.0,46922.0,0.001]
[1641099822432,0.36281438,46927.0,46923.0,0.18]
[1641099822635,0.36281438,46927.0,46926.0,0.18]
[1641099822834,0.60469063,46929.0,46926.0,0.18]
[1641099823036,0.36281438,46930.0,46926.0,0.498805]
[1641099823236,0.36281438,46930.0,46929.0,0.18]
[1641099823434,0.36281438,46930.0,46929.0,0.2379]
[1641099824333,0.60469063,46932.0,46929.0,0.557762]
[1641099824536,0.36281438,46933.0,46929.0,1.357762]
[1641099824733,0.36281438,46933.0,46932.0,0.18]
[1641099825138,0.36281438,46935.0,46932.0,0.18]
[1641099825333,0.36281438,46935.0,46926.0,0.28050055]
[1641099826235,0.54281438,46935.0,46927.0,0.318449]
[1641099826434,0.18,46934.0,46927.0,0.318449]
[1641099826642,0.50315005,46936.0,46926.0,0.318082]
[1641099826836,0.18,46933.0,46926.0,0.318082]
[1641099827036,0.18,46933.0,46928.0,0.316672]
[1641099827235,0.18,46933.0,46926.0,0.319453]
[1641099827534,0.36281438,46936.0,46929.0,0.3201]
[1641099827738,0.36281438,46936.0,46929.0,0.08675]
[1641099827934,0.36281438,46936.0,46929.0,1.11132994]
[1641099828135,0.14033567,46940.0,46930.0,0.38305412]
[1641099828136,0.36281438,46935.0,46930.0,0.38305412]
[1641099828535,0.36281438,46935.0,46934.0,0.001]
[1641099828746,0.60469063,46937.0,46934.0,0.001]
[1641099828947,0.14033567,46940.0,46936.0,0.001]
[1641099829147,0.14033567,46940.0,46934.0,0.316539]
[1641099829347,0.14033567,46940.0,46933.0,0.087888]
[1641099829547,0.36281438,46943.0,46934.0,0.14033567]
[1641099829746,0.50315005,46945.0,46934.0,0.45990967]
[1641099830145,0.18,46941.0,46934.0,0.45990967]
[1641099830346,0.50315005,46945.0,46934.0,0.45990967]
[1641099830749,0.50315005,46945.0,46935.0,0.2112]
[1641099831153,0.50315005,46945.0,46937.0,0.2112]
[1641099831352,0.14033567,46945.0,46937.0,0.2112]
[1641099833456,0.32033567,46945.0,46937.0,0.2112]
[1641099836354,0.32033567,46945.0,46935.0,0.2112]
[1641099837055,0.14033567,46945.0,46937.0,0.2112]
[1641099837255,0.18,46942.0,46937.0,0.2112]
[1641099837455,0.14033567,46945.0,46935.0,0.317472]
[1641099837456,0.32033567,46945.0,46935.0,0.317472]
[1641099837655,0.18,46942.0,46935.0,0.317472]
[1641099837856,0.32033567,46945.0,46934.0,0.49159429]
[1641099838258,0.32033567,46945.0,46935.0,0.31859]
[1641099838456,0.32033567,46945.0,46938.0,0.42609217]
[1641099838659,0.18,46942.0,46938.0,0.42609217]
[1641099839057,0.32033567,46945.0,46938.0,0.42609217]
[1641099839658,0.32033567,46945.0,46939.0,0.319976]
[1641099839860,0.18,46944.0,46935.0,0.2112]
[1641099840259,0.12,46944.0,46935.0,0.2112]
[1641099840458,0.18,46940.0,46934.0,0.14033567]
[1641099841460,0.18,46940.0,46939.0,0.001]
[1641099841660,0.18,46940.0,46939.0,0.14133567]
[1641099841861,0.18,46940.0,46939.0,0.14033567]
[1641099842061,0.18,46940.0,46934.0,0.14033567]
[1641099842261,0.18,46935.0,46933.0,0.14033567]
[1641099846372,0.18,46938.0,46933.0,0.14033567]
[1641099847975,0.18,46935.0,46933.0,0.14033567]
[1641099848275,0.14033567,46939.0,46933.0,0.14033567]
[1641099848674,0.18,46938.0,46933.0,0.14033567]
[1641099851882,0.14033567,46939.0,46933.0,0.14033567]
[1641099852080,0.18,46934.0,46933.0,0.14033567]
[1641099852285,0.369794,46934.0,46924.0,1.34977115]
[1641099852581,0.18,46925.0,46924.0,1.34977115]
[1641099852880,0.26972,46925.0,46924.0,1.34977115]
[1641099853284,0.08972,46925.0,46924.0,0.14967965]
[1641099853984,0.18,46931.0,46924.0,0.14967965]
[1641099854882,0.18,46931.0,46925.0,0.00934398]
[1641099855382,0.15012967,46934.0,46925.0,0.00934398]
[1641099855582,0.18,46926.0,46925.0,0.00934398]
[1641099855782,0.18,46931.0,46925.0,0.00934398]
[1641099858185,0.15012967,46934.0,46925.0,0.00934398]
[1641099858385,0.18,46926.0,46925.0,0.00934398]
[1641099858883,0.18,46931.0,46925.0,0.00934398]
[1641099859086,0.15012967,46934.0,46925.0,0.00934398]
[1641099859285,0.18,46926.0,46925.0,0.00934398]
[1641099861490,0.15012967,46934.0,46925.0,0.00934398]
[1641099861992,0.18,46931.0,46925.0,0.00934398]
[1641099862191,0.15012967,46934.0,46925.0,0.00934398]
[1641099862406,0.36281438,46931.0,46925.0,0.00934398]
[1641099862591,0.36281438,46931.0,46927.0,1.20943548]
[1641099862790,0.18,46928.0,46927.0,1.20943548]
[1641099863193,0.36281438,46931.0,46927.0,1.20943548]
[1641099863798,0.18,46928.0,46927.0,1.20943548]
[1641099864200,0.369794,46928.0,46927.0,1.20943548]
[1641099864500,0.369794,46928.0,46910.0,2.23225149]
[1641099864699,0.18,46914.0,46910.0,2.23225149]
[1641099864902,0.24761,46914.0,46912.0,1.5924379]
[1641099866001,0.24761,46914.0,46912.0,0.02130923]
[1641099866200,0.24761,46914.0,46908.0,0.0213113]
[1641099866402,0.18,46911.0,46908.0,0.0213113]
[1641099866601,0.12,46911.0,46908.0,0.0213113]
[1641099866804,0.0463,46909.0,46908.0,0.0213113]
[1641099867004,0.1663,46912.0,46909.0,0.07561269]
[1641099867207,0.1663,46912.0,46909.0,1.14149469]
[1641099867406,0.1663,46912.0,46908.0,1.16282799]
[1641099867606,0.14033567,46916.0,46910.0,1.065859]
[1641099867906,0.1663,46911.0,46909.0,1.14148269]
[1641099868107,0.1663,46911.0,46909.0,1.06587]
[1641099869912,0.1663,46911.0,46903.0,0.02131369]
[1641099870110,0.1663,46908.0,46903.0,0.02131369]
[1641099870311,0.1663,46908.0,46905.0,0.0137]
[1641099870610,0.1663,46908.0,46906.0,1.14266908]
[1641099870812,0.14033567,46910.0,46906.0,1.14266908]
[1641099871010,0.14033567,46910.0,46906.0,2.41076352]
[1641099871414,0.66945005,46916.0,46909.0,0.0350099]
[1641099871615,0.14033567,46916.0,46913.0,0.0137]
[1641099871811,0.14033567,46916.0,46915.0,0.02130775]
[1641099872311,0.14033567,46916.0,46915.0,0.02230775]
[1641099872912,0.1663,46920.0,46915.0,0.34059175]
[1641099873112,0.37260838,46923.0,46919.0,0.001]
[1641099873313,0.37260838,46923.0,46915.0,0.33959175]
[1641099873515,0.1663,46922.0,46915.0,0.33959175]
[1641099873712,0.37260838,46923.0,46915.0,0.331984]
[1641099873914,0.37260838,46923.0,46918.0,0.02130666]
[1641099874115,0.009794,46923.0,46918.0,0.02130666]
[1641099876018,0.1663,46922.0,46918.0,0.02130666]
[1641099876818,0.1663,46919.0,46916.0,1.33111352]
[1641099877019,0.1663,46922.0,46918.0,0.001]
[1641099877318,0.1663,46922.0,46916.0,1.33111352]
[1641099878019,0.1663,46922.0,46917.0,0.318286]
[1641099878221,0.52911438,46926.0,46920.0,0.0137]
[1641099878421,0.36281438,46925.0,46920.0,0.03500477]
[1641099878621,0.52911438,46925.0,46920.0,0.35605677]
[1641099878922,0.1663,46925.0,46920.0,0.35605677]
[1641099879324,0.1663,46925.0,46921.0,0.08263167]
[1641099879524,0.36281438,46927.0,46922.0,0.0137]
[1641099879728,0.36281438,46927.0,46922.0,0.327599]
[1641099880025,0.36281438,46927.0,46922.0,0.32324356]
[1641099880231,0.1663,46924.0,46922.0,0.32324356]
[1641099880424,0.1663,46926.0,46923.0,0.00934456]
[1641099880824,0.1663,46926.0,46924.0,0.321238]
[1641099881224,0.52911438,46926.0,46924.0,0.321238]
[1641099881825,0.52911438,46926.0,46921.0,1.42911591]
[1641099882225,0.52911438,46926.0,46922.0,0.00934408]
[1641099882625,0.1663,46924.0,46922.0,0.00934408]
[1641099882828,0.1663,46924.0,46923.0,0.001]
[1641099883428,0.1663,46924.0,46922.0,0.00934408]
[1641099883630,0.1663,46924.0,46921.0,0.09800239]
[1641099884029,0.176094,46924.0,46920.0,1.33111352]
[1641099884229,0.1663,46921.0,46918.0,1.33111352]
[1641099884429,0.24788,46921.0,46918.0,1.33111352]
[1641099885030,0.18,46919.0,46918.0,1.33111352]
[1641099885432,0.36281438,46920.0,46914.0,1.33111352]
[1641099886029,0.1663,46915.0,46914.0,1.33111352]
[1641099886429,0.1663,46915.0,46911.0,1.33111352]
[1641099886632,0.36281438,46917.0,46914.0,0.00934691]
[1641099886830,0.1663,46915.0,46914.0,0.00934691]
[1641099887031,0.1663,46915.0,46912.0,0.00934691]
[1641099887232,0.1663,46915.0,46914.0,0.00934691]
[1641099887632,0.1663,46915.0,46913.0,0.00934691]
[1641099887831,0.1663,46915.0,46914.0,0.00934691]
[1641099888233,0.1663,46915.0,46912.0,0.00934691]
[1641099888834,0.1663,46915.0,46910.0,0.00934691]
[1641099889037,0.36281438,46917.0,46913.0,0.00934691]
[1641099889235,0.36281438,46917.0,46909.0,0.02131071]
[1641099889236,0.1663,46914.0,46911.0,0.00934691]
[1641099889535,0.1663,46914.0,46909.0,0.02131071]
[1641099889735,0.1663,46910.0,46909.0,0.02131071]
[1641099889936,0.1663,46913.0,46909.0,0.02231071]
[1641099890136,0.1663,46913.0,46909.0,1.16240573]
[1641099890337,0.36281438,46917.0,46911.0,0.42633919]
[1641099890541,0.36281438,46917.0,46912.0,0.0137]
[1641099890738,0.36281438,46917.0,46912.0,1.47509202]
[1641099890938,0.36281438,46917.0,46912.0,1.46139202]
[1641099891138,0.50315005,46918.0,46912.0,1.47509202]
[1641099891338,0.50315005,46918.0,46913.0,0.09271394]
[1641099891538,0.50315005,46918.0,46913.0,0.16792696]
[1641099891739,0.50315005,46918.0,46914.0,0.319218]
[1641099891939,0.14033567,46918.0,46914.0,0.39443102]
[1641099892339,0.14033567,46918.0,46914.0,0.319218]
[1641099893040,0.14033567,46918.0,46914.0,1.77135904]
[1641099893741,0.14033567,46918.0,46915.0,0.0752172]
[1641099894139,0.14033567,46918.0,46916.0,0.320358]
[1641099894540,0.14033567,46918.0,46916.0,0.55985732]
[1641099894939,0.14033567,46918.0,46916.0,0.23949932]
[1641099895140,0.14033567,46918.0,46917.0,0.320054]
[1641099895340,0.14033567,46918.0,46917.0,0.391294]
[1641099896443,0.14033567,46918.0,46917.0,0.07124]
[1641099898644,0.14033567,46918.0,46917.0,0.392348]
[1641099898944,0.14033567,46918.0,46917.0,0.07124]
[1641099899144,0.14033567,46918.0,46915.0,0.35055455]
[1641099899546,0.1663,46916.0,46914.0,1.45214104]
[1641099900347,0.1663,46916.0,46911.0,1.45214104]
[1641099900748,0.1663,46916.0,46912.0,0.07960101]
[1641099900946,0.50315005,46918.0,46912.0,0.07960101]
[1641099901150,0.36281438,46917.0,46912.0,0.07960101]
[1641099901347,0.1663,46913.0,46912.0,0.07960101]
[1641099901546,0.1663,46913.0,46910.0,1.45214104]
[1641099901547,0.1663,46913.0,46911.0,0.07960101]
[1641099901746,0.1663,46913.0,46910.0,1.45214104]
[1641099901947,0.1663,46913.0,46912.0,0.07960179]
[1641099902346,0.1663,46913.0,46911.0,0.07960179]
[1641099902547,0.1663,46913.0,46912.0,0.07960179]
[1641099902748,0.14033567,46918.0,46912.0,0.07960179]
[1641099902948,0.30663567,46918.0,46912.0,0.08877]
[1641099903148,0.30663567,46918.0,46912.0,0.409746]
[1641099903350,0.30663567,46918.0,46913.0,0.07960179]
[1641099903949,0.30663567,46918.0,46917.0,0.001]
[1641099904250,0.14033567,46918.0,46917.0,0.001]
[1641099904449,0.30663567,46918.0,46917.0,0.001]
[1641099904649,0.30663567,46918.0,46917.0,0.009346]
[1641099904849,0.14033567,46918.0,46917.0,0.009346]
[1641099905249,0.14033567,46918.0,46915.0,0.009346]
[1641099905649,0.14033567,46918.0,46917.0,0.010346]
[1641099905851,0.14033567,46918.0,46917.0,0.2122]
[1641099906049,0.14033567,46918.0,46917.0,0.221546]
[1641099906249,0.14033567,46918.0,46917.0,0.30256617]
[1641099906550,0.14033567,46918.0,46917.0,0.221546]
[1641099907350,0.14033567,46918.0,46917.0,0.009346]
[1641099907951,0.14033567,46918.0,46915.0,0.009346]
[1641099908148,0.14033567,46918.0,46917.0,0.009346]
[1641099908349,0.30663567,46918.0,46917.0,0.001]
[1641099908760,0.30663567,46918.0,46917.0,0.010346]
[1641099911254,0.14033567,46918.0,46917.0,0.010346]
[1641099911655,0.14033567,46918.0,46917.0,0.30237551]
[1641099911860,0.36281438,46924.0,46917.0,0.30237551]
[1641099912057,0.52911438,46924.0,46918.0,0.0137]
[1641099912257,0.84587404,46927.0,46923.0,0.001]
[1641099912258,0.29881438,46925.0,46923.0,0.001]
[1641099912460,0.29881438,46925.0,46923.0,0.06861]
[1641099912658,0.29881438,46925.0,46924.0,0.000883]
[1641099912858,0.60469063,46927.0,46924.0,0.001883]
[1641099913058,0.60469063,46927.0,46924.0,0.08930882]
[1641099913258,0.30663567,46931.0,46924.0,0.09865701]
[1641099913459,0.30663567,46931.0,46925.0,0.09777401]
[1641099913660,0.30663567,46931.0,46930.0,0.001]
[1641099914058,0.30663567,46931.0,46926.0,0.32704319]
[1641099914260,0.30663567,46931.0,46926.0,0.317695]
[1641099914658,0.30663567,46931.0,46927.0,0.00934847]
[1641099915065,0.14033567,46931.0,46930.0,0.001]
[1641099915459,0.30663567,46931.0,46930.0,0.001]
[1641099916266,0.1663,46934.0,46930.0,0.001]
[1641099916561,0.1663,46934.0,46930.0,0.319001]
[1641099916762,0.1663,46934.0,46931.0,0.10361984]
[1641099917163,0.1663,46934.0,46932.0,0.004652]
[1641099917363,0.1663,46934.0,46932.0,0.10761707]
[1641099919170,0.1663,46934.0,46932.0,0.004652]
[1641099919372,0.1663,46934.0,46927.0,0.2112]
[1641099919573,0.1663,46928.0,46927.0,0.2112]
[1641099919771,0.1663,46928.0,46927.0,0.2122]
[1641099919972,0.0463,46928.0,46927.0,0.22154815]
[1641099920173,0.1663,46928.0,46927.0,0.54211615]
[1641099920372,0.1663,46934.0,46929.0,0.10823581]
[1641099920771,0.1663,46934.0,46930.0,0.32631015]
[1641099921170,0.1663,46934.0,46930.0,0.316962]
[1641099922372,0.60469063,46938.0,46933.0,0.0137]
[1641099922572,0.14033567,46945.0,46933.0,0.0137]
[1641099922573,0.13833567,46945.0,46937.0,0.06]
[1641099922773,0.13833567,46945.0,46939.0,0.12998868]
[1641099922974,0.13833567,46945.0,46943.0,0.02129537]
[1641099923172,0.13833567,46945.0,46944.0,0.08055143]
[1641099923376,0.50035492,46945.0,46944.0,0.29175143]
[1641099923573,0.50035492,46945.0,46944.0,0.29275143]
[1641099924574,0.13833567,46945.0,46944.0,0.29275143]
[1641099927378,0.13833567,46945.0,46944.0,0.61124743]
[1641099927979,0.13833567,46945.0,46944.0,0.530696]
[1641099933481,0.14033567,46949.0,46947.0,0.2112]
[1641099933784,0.14033567,46949.0,46948.0,0.529164]
[1641099934184,0.14033567,46949.0,46948.0,0.2122]
[1641099934391,0.14033567,46949.0,46948.0,0.533556]
[1641099936492,0.12,46952.0,46948.0,0.533556]
[1641099936689,0.12,46952.0,46951.0,0.001]
[1641099950601,0.36201925,46955.0,46952.0,0.2112]
[1641099950802,0.60396428,46957.0,46954.0,0.001]
[1641099950803,0.47607522,46957.0,46954.0,0.001]
[1641099951001,0.47607522,46957.0,46956.0,0.001]
[1641099951202,0.47607522,46957.0,46956.0,0.35253567]
[1641099951403,0.47607522,46957.0,46956.0,0.3769748]
[1641099951601,0.84554895,46958.0,46956.0,1.2912493]
[1641099951802,0.84554895,46958.0,46957.0,0.001]
[1641099952004,2.0992,46964.0,46957.0,0.001]
[1641099952205,0.12,46964.0,46962.0,0.001]
[1641099952403,0.12,46964.0,46963.0,0.001]
[1641099952604,0.12,46964.0,46963.0,0.41343812]
[1641099953205,0.12,46964.0,46963.0,0.001]
[1641099954006,0.12,46964.0,46963.0,0.318483]
[1641099955808,0.12,46964.0,46963.0,0.001]
[1641099958212,0.12,46964.0,46960.0,0.02128743]
[1641099958413,0.12,46964.0,46949.0,0.14033567]
[1641099958414,0.12,46961.0,46957.0,0.02128905]
[1641099958613,0.12,46958.0,46957.0,0.02128905]
[1641099959315,0.26033567,46958.0,46957.0,0.02128905]
[1641099960113,0.26033567,46958.0,46950.0,0.05359203]
[1641099960314,0.12,46951.0,46950.0,0.05359203]
[1641099960515,0.12,46951.0,46950.0,0.05459203]
[1641099960714,0.21002,46951.0,46950.0,0.37535603]
[1641099961314,0.21002,46951.0,46950.0,0.05459203]
[1641099962313,0.21002,46951.0,46950.0,0.16663813]
[1641099962515,0.21002,46951.0,46950.0,0.48424513]
[1641099964015,0.14033567,46958.0,46955.0,0.03050888]
[1641099964217,0.14033567,46958.0,46955.0,0.09378888]
[1641099964416,0.14033567,46958.0,46956.0,0.318146]
[1641099964820,0.12,46957.0,46955.0,0.0845699]
[1641099965427,0.12,46957.0,46956.0,0.318444]
[1641099965630,0.18,46963.0,46956.0,0.318444]
[1641099965826,0.12,46957.0,46956.0,0.318444]
[1641099966826,0.36215013,46961.0,46956.0,0.318444]
[1641099967227,0.36215013,46961.0,46958.0,0.8]
[1641099967431,0.36215013,46961.0,46959.0,0.02128814]
[1641099967633,0.36215013,46961.0,46959.0,0.39909614]
[1641099968032,0.36215013,46961.0,46960.0,0.2122]
[1641099968434,0.36215013,46961.0,46960.0,0.529736]
[1641099968835,0.12,46962.0,46960.0,0.529736]
[1641099969035,0.12,46962.0,46961.0,0.001]
[1641099969435,0.12,46962.0,46961.0,0.531693]
[1641099970134,0.12,46962.0,46961.0,0.530693]
[1641099970335,0.12,46962.0,46961.0,0.319493]
[1641099970936,0.12,46962.0,46960.0,0.320019]
[1641099974543,0.48215013,46962.0,46960.0,0.320019]
[1641099975345,0.12,46962.0,46960.0,0.320019]
[1641099976049,0.12,46962.0,46959.0,0.16162381]
[1641099976644,0.12,46962.0,46960.0,0.320177]